fUSD/lending_fUSD_20260205
["ID","MTS","AMOUNT","RATE_DAILY","PERIOD"]
[404591355,1770318637920,-500.0,0.00016271,2]
[404591357,1770318637931,-500.0,0.00016326,2]
[404591359,1770318637942,-500.0,0.00016402,2]
[404591361,1770318637951,-587.0,0.00016409,2]
[404591363,1770318637961,-166.66,0.00016417,2]
[404591364,1770318637970,-1010.82,0.00016422,2]
[404591367,1770318637982,-1010.82,0.00016452,2]
[404591369,1770318637992,-1010.82,0.00016482,2]
[404591371,1770318638001,-1010.82,0.00016513,2]
[404591373,1770318638012,-1916.61,0.00016519,2]
[404591375,1770318638021,-2302.45777077,0.00016519,2]
[404591377,1770318638033,-4499.8616,0.00016519,2]
[404591379,1770318638045,-5517.775,0.00016519,2]
[404591382,1770318638061,-563.24562923,0.00016519,2]
[404591383,1770318638070,-169.20437077,0.00016531,2]
[404591387,1770318638094,-2181.79562923,0.00016531,2]
[404591389,1770318638104,-1010.82,0.00016543,2]
[404591391,1770318638113,-1010.82,0.00016573,2]
[404591393,1770318638123,-1010.82,0.00016603,2]
[404591395,1770318638132,-1010.82,0.00016634,2]
[404591397,1770318638141,-1010.82,0.00016664,2]
[404591399,1770318638151,-631.73,0.00016692,2]
[404591401,1770318638160,-1010.82,0.00016694,2]
[404591403,1770318638169,-1010.82,0.00016724,2]
[404591405,1770318638178,-1010.82,0.00016755,2]
[404591407,1770318638188,-1010.82,0.00016785,2]
[404591409,1770318638197,-1010.82,0.00016815,2]
[404591411,1770318638206,-1010.82,0.00016845,2]
[404591413,1770318638216,-1010.82,0.00016876,2]
[404591415,1770318638226,-1010.82,0.00016906,2]
[404591417,1770318638235,-166.66,0.0001691,2]
[404591419,1770318638244,-500.0,0.00016934,2]
[404591421,1770318638253,-1010.82,0.00016936,2]
[404591423,1770318638262,-166.66,0.00016941,2]
[404591425,1770318638271,-1010.82,0.00016966,2]
[404591427,1770318638281,-1010.82,0.00016997,2]
[404591428,1770318638290,-166.66,0.00017298,2]
[404591429,1770318638300,-166.66,0.00017403,2]
[404591430,1770318638309,-150.0,0.00017519,2]
[404591431,1770318638318,-188.91311241,0.00017519,2]
[404591432,1770318638328,-153.69847758,0.00017597,2]
[404591433,1770318638337,-166.66,0.00017655,2]
[404591434,1770318638346,-150.0,0.00017699,2]
[404591435,1770318638355,-150.0,0.00017699,2]
[404591436,1770318638365,-150.0,0.00017699,2]
[404591437,1770318638578,-500.0,0.00017699,2]
[404591438,1770318638589,-500.0,0.00017699,2]
[404591439,1770318638600,-150.0,0.00017699,2]
[404591440,1770318638610,-150.0,0.00017699,2]
[404591441,1770318638620,-150.0,0.00017699,2]
[404591442,1770318638631,-192.17460847,0.00017699,2]
[404591443,1770318638641,-500.0,0.00017699,2]
[404591444,1770318638650,-150.0,0.00017699,2]
[404591445,1770318638660,-241.64782027,0.00017699,2]
[404591446,1770318638670,-500.0,0.00017699,2]
[404591447,1770318638679,-150.0,0.00017754,2]
[404591448,1770318638689,-150.0,0.00017754,2]
[404591449,1770318638699,-502.74294871,0.00017754,2]
[404591450,1770318638709,-150.0,0.00017754,2]
[404591451,1770318638719,-200.2113618,0.00017754,2]
[404591452,1770318638729,-150.0,0.00017754,2]
[404591453,1770318638739,-501.95201777,0.00017754,2]
[404591454,1770318638749,-150.0,0.00017754,2]
[404591455,1770318638758,-500.0,0.00017754,2]
[404591456,1770318638768,-150.0,0.00017754,2]
[404591457,1770318638784,-500.0,0.00017754,2]
[404591458,1770318638795,-895.0,0.00017793,2]
[404591459,1770318638804,-500.0,0.00017808,2]
[404591460,1770318638814,-150.0,0.00017809,2]
[404591461,1770318638825,-200.33165564,0.00017809,2]
[404591462,1770318638834,-150.0,0.00017809,2]
[404591463,1770318638844,-150.0,0.00017809,2]
[404591464,1770318638854,-150.0,0.00017809,2]
[404591465,1770318638864,-582.0,0.00017809,2]
[404591466,1770318638874,-150.0,0.00017809,2]
[404591467,1770318638884,-481.18508703,0.00017809,2]
[404591468,1770318638894,-895.0,0.00017812,2]
[404591469,1770318638904,-200.0,0.00017833,2]
[404591470,1770318638915,-337.58,0.00017856,2]
[404591471,1770318638926,-500.0,0.00017863,2]
[404591472,1770318638940,-150.0,0.00017863,2]
[404591473,1770318638951,-500.0,0.00017918,2]
[404591474,1770318638961,-500.0,0.00017972,2]
[404591475,1770318638971,-500.0,0.00017973,2]
[404591476,1770318638981,-500.0,0.00017973,2]
[404591477,1770318638991,-511.65883454,0.00017973,2]
[404591478,1770318639001,-500.0,0.00017973,2]
[404591479,1770318639012,-500.0,0.00017973,2]
[404591480,1770318639025,-500.0,0.00017973,2]
[404591481,1770318639034,-506.98515424,0.00017973,2]
[404591482,1770318639044,-500.0,0.00017973,2]
[404591483,1770318639054,-500.0,0.00017973,2]
[404591484,1770318639063,-387.32253792,0.00017973,2]
[404591485,1770318639073,-500.0,0.00017973,2]
[404591486,1770318639082,-500.0,0.00017973,2]
[404591487,1770318639091,-500.0,0.00017973,2]
[404591488,1770318639100,-500.0,0.00017973,2]
[404591489,1770318639110,-500.0,0.00017973,2]
[404591490,1770318639119,-500.0,0.00017973,2]
[404591491,1770318639128,-500.0,0.00017973,2]
[404591492,1770318639138,-500.0,0.00017973,2]
[404591493,1770318639149,-506.90768866,0.00017973,2]
[404591494,1770318639158,-500.0,0.00017973,2]
[404591495,1770318639168,-509.2963147,0.00017973,2]
[404591496,1770318639177,-510.4331516,0.00017973,2]
[404591497,1770318639187,-500.0,0.00017973,2]
[404591498,1770318639196,-500.0,0.00017973,2]
[404591499,1770318639206,-500.0,0.00017973,2]
[404591500,1770318639216,-500.0,0.00017973,2]
[404591501,1770318639226,-500.0,0.00017973,2]
[404591502,1770318639237,-500.0,0.00017973,2]
[404591503,1770318639247,-500.0,0.00017973,2]
[404591504,1770318639256,-500.0,0.00017973,2]
[404591505,1770318639266,-500.0,0.00017973,2]
[404591506,1770318639280,-500.0,0.00017973,2]
[404591507,1770318639290,-823.0,0.00017983,2]
[404591508,1770318639299,-200.0,0.00018,2]
[404591509,1770318639308,-166.66,0.00018011,2]
[404591510,1770318639318,-500.0,0.00018027,2]
[404591511,1770318639328,-500.0,0.00018082,2]
[404591512,1770318639338,-895.0,0.00018118,2]
[404591513,1770318639347,-500.0,0.00018137,2]
[404591514,1770318639356,-312.31034828,0.00018138,2]
[404591515,1770318639366,-895.0,0.00018142,2]
[404591517,1770318639376,-895.0,0.00018158,2]
[404591519,1770318639385,-895.0,0.00018178,2]
[404591520,1770318639395,-3292.0,0.00018184,2]
[404591521,1770318639405,-500.0,0.00018192,2]
[404591522,1770318639414,-152.01739561,0.00018246,2]
[404591523,1770318639423,-895.0,0.00018246,2]
[404591524,1770318639432,-500.0,0.00018246,2]
[404591525,1770318639441,-895.0,0.00018267,2]
[404591526,1770318639451,-221.88177425,0.00018301,2]
[404591527,1770318639460,-200.0,0.00018319,2]
[404591528,1770318639469,-166.66,0.00018368,2]
[404591529,1770318639478,-895.0,0.00018376,2]
[404591531,1770318639487,-2000.0,0.00018414,2]
[404591532,1770318639497,-174.61919141,0.00018414,2]
[404591533,1770318639506,-578.20924308,0.00018414,2]
[404591534,1770318639515,-721.12765535,0.00018414,2]
[404591535,1770318639528,-209.40437684,0.00018414,2]
[404591536,1770318639538,-322.6107,0.00018414,2]
[404591537,1770318639547,-4053.26889675,0.00018421,2]
[404591539,1770318639556,-895.0,0.00018449,2]
[404591540,1770318639565,-487.0,0.00018449,2]
[404591541,1770318639575,-574.65,0.00018449,2]
[404591542,1770318639584,-217.15233878,0.00018469,2]
[404591543,1770318639594,-1000.0,0.00018521,2]
[404591544,1770318639603,-526.27576932,0.00018521,2]
[404591545,1770318639612,-1000.0,0.00018521,2]
[404591546,1770318639621,-1000.0,0.00018521,2]
[404591547,1770318639631,-1000.0,0.00018521,2]
[404591548,1770318639640,-267.60703924,0.00018521,2]
[404591549,1770318639649,-956.19349362,0.00018521,2]
[404591550,1770318639659,-1000.0,0.00018521,2]
[404591551,1770318639668,-1000.0,0.00018521,2]
[404591552,1770318639677,-1000.0,0.00018521,2]
[404591553,1770318639687,-1000.0,0.00018521,2]
[404591554,1770318639697,-1000.0,0.00018521,2]
[404591555,1770318639706,-408.8446401,0.00018521,2]
[404591556,1770318639715,-1000.0,0.00018521,2]
[404591557,1770318639724,-626.50935226,0.00018521,2]
[404591558,1770318639734,-1000.0,0.00018521,2]
[404591559,1770318639743,-1000.0,0.00018521,2]
[404591560,1770318639753,-1000.0,0.00018521,2]
[404591561,1770318639762,-1000.0,0.00018521,2]
[404591562,1770318639780,-677.28221394,0.00018521,2]
[404591563,1770318639792,-1000.0,0.00018521,2]
[404591564,1770318639802,-1000.0,0.00018521,2]
[404591565,1770318639812,-1000.0,0.00018521,2]
[404591566,1770318639822,-1000.0,0.00018521,2]
[404591567,1770318639832,-490.41332566,0.00018521,2]
[404591568,1770318639842,-1000.0,0.00018521,2]
[404591569,1770318639852,-225.18697532,0.00018524,2]
[404591570,1770318639862,-895.0,0.00018564,2]
[404591571,1770318639872,-233.51889341,0.00018579,2]
[404591572,1770318639882,-1205.0,0.00018601,2]
[404591573,1770318639892,-917.0,0.00018601,2]
[404591574,1770318639902,-3266.636,0.00018601,2]
[404591575,1770318639913,-412.0,0.00018601,2]
[404591576,1770318639923,-895.0,0.00018604,2]
[404591577,1770318639934,-895.0,0.0001861,2]
[404591578,1770318639948,-965.28313497,0.00018618,2]
[404591579,1770318639957,-895.0,0.00018622,2]
[404591580,1770318639967,-242.15909246,0.00018634,2]
[404591581,1770318639978,-895.0,0.00018669,2]
[404591582,1770318639988,-251.11897888,0.00018689,2]
[404591583,1770318639998,-166.66,0.00018725,2]
[404591584,1770318640010,-260.4103811,0.00018744,2]
[404591585,1770318640023,-150.0,0.00018785,2]
[404591586,1770318640033,-250.0,0.00018792,2]
[404591587,1770318640042,-150.0,0.00018792,2]
[404591588,1770318640052,-150.0,0.00018792,2]
[404591589,1770318640062,-150.0,0.00018792,2]
[404591590,1770318640073,-150.0,0.00018792,2]
[404591591,1770318640083,-150.0,0.00018792,2]
[404591592,1770318640093,-150.0,0.00018792,2]
[404591593,1770318640103,-150.0,0.00018792,2]
[404591594,1770318640112,-150.0,0.00018792,2]
[404591595,1770318640122,-1411.0,0.00018792,2]
[404591596,1770318640132,-1335.0,0.00018792,2]
[404591597,1770318640141,-3482.0,0.00018792,2]
[404591598,1770318640151,-616.0,0.00018792,2]
[404591599,1770318640161,-270.0455652,0.00018799,2]
[404591600,1770318640171,-895.0,0.00018807,2]
[404591602,1770318640180,-280.03725112,0.00018854,2]
[404591603,1770318640189,-290.39862941,0.00018909,2]
[404591604,1770318640199,-895.0,0.00018941,2]
[404591605,1770318640208,-2000.0,0.00018962,2]
[404591606,1770318640217,-181.08010149,0.00018962,2]
[404591608,1770318640227,-301.1433787,0.00018964,2]
[404591610,1770318640236,-2500.0,0.00018968,2]
[404591612,1770318640246,-500.0,0.00018972,2]
[404591614,1770318640255,-895.0,0.00019048,2]
[404591615,1770318640265,-1004.24833384,0.00019067,5]
[404591616,1770318640277,-1500.0,0.00019068,2]
[404591617,1770318640287,-908.89576694,0.00019068,2]
[404591618,1770318640297,-1500.0,0.00019068,2]
[404591619,1770318640307,-1500.0,0.00019068,2]
[404591620,1770318640316,-1500.0,0.00019068,2]
[404591621,1770318640325,-1500.0,0.00019068,2]
[404591622,1770318640335,-1500.0,0.00019068,2]
[404591623,1770318640344,-1504.2260666,0.00019068,2]
[404591624,1770318640354,-1500.0,0.00019068,2]
[404591625,1770318640363,-1500.0,0.00019068,2]
[404591626,1770318640372,-1500.0,0.00019068,2]
[404591627,1770318640382,-1500.0,0.00019068,2]
[404591628,1770318640391,-1500.0,0.00019068,2]
[404591629,1770318640400,-1500.0,0.00019068,2]
[404591630,1770318640410,-1500.0,0.00019068,2]
[404591631,1770318640420,-1500.0,0.00019068,2]
[404591632,1770318640429,-1500.0,0.00019068,2]
[404591633,1770318640440,-1500.0,0.00019068,2]
[404591634,1770318640450,-1500.0,0.00019068,2]
[404591635,1770318640459,-895.0,0.00019085,2]
[404591636,1770318640469,-895.0,0.00019103,2]
[404591637,1770318640479,-500.0,0.00019141,2]
[404591638,1770318640488,-895.0,0.00019153,2]
[404591639,1770318640498,-500.0,0.00019178,2]
[404591640,1770318640508,-160.89366842,0.00019178,2]
[404591641,1770318640517,-150.0,0.00019178,2]
[404591642,1770318640531,-337.58,0.00019226,2]
[404591643,1770318640544,-500.0,0.00019233,2]
[404591644,1770318640553,-449.406372,0.00019259,7]
[404591645,1770318640563,-500.0,0.00019288,2]
[404591646,1770318640573,-895.0,0.0001929,2]
[404591647,1770318640583,-895.0,0.00019301,2]
[404591648,1770318640592,-158.02201093,0.00019342,2]
[404591649,1770318640602,-895.0,0.00019389,2]
[404591650,1770318640612,-1000.0,0.00019395,2]
[404591651,1770318640622,-895.0,0.0001945,2]
[404591652,1770318640631,-2000.0,0.0001951,2]
[404591653,1770318640641,-187.78006525,0.0001951,2]
[404591654,1770318640650,-1990.99013013,0.00019616,2]
[404591655,1770318640660,-2000.0,0.00019616,2]
[404591656,1770318640669,-2000.0,0.00019616,2]
[404591657,1770318640678,-2000.0,0.00019616,2]
[404591658,1770318640688,-2000.0,0.00019616,2]
[404591659,1770318640697,-500.0,0.00019616,2]
[404591660,1770318640710,-2000.0,0.00019616,2]
[404591661,1770318640720,-477.38277676,0.00019616,2]
[404591662,1770318640729,-2149.51215349,0.00019616,2]
[404591663,1770318640739,-2000.0,0.00019616,2]
[404591664,1770318640749,-1222.56300425,0.00019616,2]
[404591665,1770318640759,-2000.0,0.00019616,2]
[404591666,1770318640768,-589.95947915,0.00019616,2]
[404591667,1770318640781,-1010.00911744,0.00019616,2]
[404591668,1770318640791,-2000.0,0.00019616,2]
[404591669,1770318640800,-692.37886657,0.00019616,2]
[404591670,1770318640810,-2000.0,0.00019616,2]
[404591671,1770318640819,-1152.0,0.00019708,2]
[404591672,1770318640828,-500.0,0.00019726,2]
[404591673,1770318640838,-250.0,0.00019726,2]
[404591674,1770318640847,-500.0,0.00019781,2]
[404591675,1770318640857,-150.21207895,0.00019781,2]
[404591676,1770318640866,-150.0,0.00019781,2]
[404591677,1770318640876,-150.42668535,0.00019781,2]
[404591678,1770318640886,-150.0,0.00019781,2]
[404591679,1770318640896,-150.0,0.00019781,2]
[404591680,1770318640906,-150.0,0.00019781,2]
[404591681,1770318640916,-150.0,0.00019781,2]
[404591682,1770318640927,-150.0,0.00019781,2]
[404591683,1770318640940,-292.33944889,0.00019781,2]
[404591684,1770318640950,-151.98337162,0.00019781,2]
[404591685,1770318640959,-150.0,0.00019781,2]
[404591686,1770318640969,-150.0,0.00019781,2]
[404591687,1770318640981,-150.0,0.00019781,2]
[404591688,1770318640990,-500.0,0.00019781,2]
[404591689,1770318641000,-150.0,0.00019781,2]
[404591690,1770318641010,-334.5472959,0.00019783,2]
[404591691,1770318641020,-500.0,0.00019836,2]
[404591692,1770318641033,-150.0,0.00019836,2]
[404591693,1770318641042,-150.87713619,0.00019836,2]
[404591694,1770318641052,-150.0,0.00019836,2]
[404591695,1770318641062,-150.21709555,0.00019836,2]
[404591696,1770318641072,-613.72923299,0.00019836,2]
[404591697,1770318641082,-208.08041389,0.00019836,2]
[404591698,1770318641092,-4053.26889667,0.00019885,2]
[404591699,1770318641102,-500.0,0.0001989,2]
[404591700,1770318641112,-200.71145025,0.00019891,2]
[404591701,1770318641122,-2252.66292989,0.00019903,2]
[404591702,1770318641173,-8075.33707011,0.00019903,2]
[404591703,1770318641183,-500.0,0.00019945,2]
[404591704,1770318641192,-500.0,0.00019973,2]
[404591705,1770318641202,-150.0,0.00019973,2]
[404591706,1770318641211,-300.0,0.00019973,2]
[404591707,1770318641221,-164.53536776,0.00019973,2]
[404591708,1770318641231,-500.0,0.0002,2]
[404591709,1770318641240,-500.0,0.0002,2]
[404591710,1770318641250,-200.0,0.0002,2]
[404591711,1770318641265,-500.0,0.00020001,2]
[404591712,1770318641277,-500.0,0.00020002,2]
[404591713,1770318641286,-2311.0,0.00020002,2]
[404591714,1770318641296,-499.9999,0.00020003,2]
[404591715,1770318641306,-625.66128038,0.00020055,2]
[404591716,1770318641315,-2000.0,0.00020058,2]
[404591717,1770318641325,-194.72792766,0.00020058,2]
[404591718,1770318641334,-239.79106788,0.00020164,2]
[404591719,1770318641344,-1680.57286649,0.00020164,2]
[404591720,1770318641353,-2500.0,0.00020164,2]
[404591721,1770318641362,-2500.0,0.00020164,2]
[404591722,1770318641372,-2500.0,0.00020164,2]
[404591723,1770318641381,-2500.0,0.00020164,2]
[404591724,1770318641390,-252.99800025,0.00020164,2]
[404591725,1770318641400,-585.35553591,0.00020164,2]
[404591726,1770318641410,-152.01739561,0.00020273,2]
[404591727,1770318641423,-600.0,0.00020273,3]
[404591728,1770318641433,-264.22979882,0.00020274,2]
[404591729,1770318641443,-765.53506386,0.0002037,3]
[404591730,1770318641454,-600.0,0.0002037,3]
[404591731,1770318641464,-174.63368133,0.00020488,2]
[404591732,1770318641474,-2000.0,0.000205,2]
[404591733,1770318641488,-523.22331426,0.00020521,2]
[404591734,1770318641498,-250.0,0.00020521,2]
[404591735,1770318641508,-600.0,0.00020521,2]
[404591736,1770318641519,-2000.0,0.00020606,2]
[404591737,1770318641530,-201.93286099,0.00020606,2]
[404591738,1770318641540,-996.81646882,0.00020686,3]
[404591739,1770318641550,-174.63368133,0.00020695,2]
[404591740,1770318641560,-2439.89783247,0.00020712,2]
[404591741,1770318641570,-3000.0,0.00020712,2]
[404591742,1770318641579,-3128.30908747,0.00020712,2]
[404591743,1770318641590,-3000.0,0.00020712,2]
[404591744,1770318641600,-155.22993896,0.00020798,2]
[404591745,1770318641610,-150.0,0.000208,7]
[404591746,1770318641620,-181.7,0.00020941,2]
[404591747,1770318641630,-150.0,0.00020973,2]
[404591748,1770318641643,-350.0,0.00021068,2]
[404591749,1770318641652,-900.0,0.00021068,2]
[404591750,1770318641663,-20961.86185966,0.000211,2]
[404591751,1770318641979,-1317.0,0.00018601,2]
[404591752,1770318641988,-150.0,0.00018971,2]
[404591753,1770318641998,-8611.13814034,0.000211,2]
[404591754,1770318642008,-346.92554585,0.00021152,2]
[404591755,1770318642018,-599.60298507,0.00021153,2]
[404591756,1770318642029,-483.7514354,0.00021153,2]
[404591757,1770318642039,-2000.0,0.00021154,2]
[404591758,1770318642048,-209.40437684,0.00021154,2]
[404591759,1770318642057,-2210.92986901,0.0002126,2]
[404591760,1770318642067,-3500.0,0.0002126,2]
[404591761,1770318642076,-197.0,0.00021268,120]
[404591762,1770318642085,-4053.26889667,0.0002135,2]
[404591763,1770318642095,-1000.0,0.0002137,2]
[404591764,1770318642107,-5530.0,0.000214,3]
[404591765,1770318642116,-181.68686723,0.00021451,2]
[404591766,1770318642126,-250.0,0.00021521,2]
[404591767,1770318642135,-155.22993896,0.00021547,2]
[404591768,1770318642145,-1613.0,0.00021598,2]
[404591769,1770318642155,-1205.0,0.00021601,2]
[404591770,1770318642164,-917.0,0.00021601,2]
[404591771,1770318642173,-3254.0,0.00021601,2]
[404591772,1770318642183,-412.0,0.00021601,2]
[404591773,1770318642192,-1317.0,0.00021601,2]
[404591774,1770318642202,-450.0,0.00021616,2]
[404591775,1770318642211,-430.2065166,0.00021616,2]
[404591776,1770318642224,-278.1486014,0.00021616,2]
[404591777,1770318642233,-1000.0,0.00021644,2]
[404591778,1770318642243,-5530.0,0.000217,5]
[404591779,1770318642253,-2000.0,0.00021702,2]
[404591780,1770318642262,-217.15233878,0.00021702,2]
[404591781,1770318642272,-180.0,0.00021707,2]
[404591782,1770318642282,-500.0,0.00021773,2]
[404591783,1770318642291,-150.0,0.00021792,2]
[404591785,1770318642300,-150.0,0.00021792,2]
[404591787,1770318642309,-150.0,0.00021792,2]
[404591789,1770318642318,-150.0,0.00021792,2]
[404591791,1770318642327,-150.0,0.00021792,2]
[404591793,1770318642336,-150.0,0.00021792,2]
[404591796,1770318642346,-150.0,0.00021792,2]
[404591798,1770318642359,-150.0,0.00021792,2]
[404591799,1770318642368,-150.0,0.00021792,2]
[404591801,1770318642377,-1411.0,0.00021792,2]
[404591802,1770318642387,-1335.0,0.00021792,2]
[404591803,1770318642396,-3482.0,0.00021792,2]
[404591804,1770318642405,-616.0,0.00021792,2]
[404591805,1770318642414,-4000.0,0.00021808,2]
[404591806,1770318642423,-4358.599,0.00021818,2]
[404591807,1770318642432,-1000.0,0.00021818,2]
[404591808,1770318642442,-1000.0,0.0002182,2]
[404591809,1770318642451,-2005.70336892,0.00021917,2]
[404591810,1770318642461,-800.0,0.00021918,4]
[404591811,1770318642470,-800.0,0.00021918,4]
[404591812,1770318642480,-800.0,0.00021918,4]
[404591813,1770318642490,-800.0,0.00021918,4]
[404591814,1770318642499,-800.0,0.00021918,4]
[404591815,1770318642509,-800.0,0.00021918,4]
[404591816,1770318642519,-800.0,0.00021918,4]
[404591817,1770318642530,-800.0,0.00021918,4]
[404591818,1770318642540,-800.0,0.00021918,4]
[404591819,1770318642549,-800.0,0.00021918,4]
[404591820,1770318642559,-800.0,0.00021918,4]
[404591821,1770318642569,-800.0,0.00021918,4]
[404591822,1770318642579,-800.0,0.00021918,4]
[404591823,1770318642588,-800.0,0.00021918,4]
[404591824,1770318642598,-800.0,0.00021918,4]
[404591825,1770318642607,-800.0,0.00021918,4]
[404591826,1770318642616,-1000.0,0.00021918,2]
[404591827,1770318642626,-341.90849198,0.00021918,2]
[404591828,1770318642635,-362.1536654,0.00021918,2]
[404591829,1770318642644,-500.0,0.00021918,2]
[404591830,1770318642653,-500.0,0.00021918,2]
[404591831,1770318642663,-150.0,0.00021918,2]
[404591832,1770318642672,-204.46,0.00021928,2]
[404591833,1770318642681,-500.0,0.00021973,2]
[404591834,1770318642691,-500.0,0.00021973,2]
[404591835,1770318642700,-370.55267235,0.00022028,2]
[404591836,1770318642709,-255.04744898,0.00022028,2]
[404591837,1770318642719,-350.0,0.00022068,2]
[404591838,1770318642728,-550.0,0.00022164,2]
[404591839,1770318642738,-1000.0,0.00022192,2]
[404591840,1770318642747,-2000.0,0.0002225,2]
[404591841,1770318642756,-225.18697532,0.0002225,2]
[404591842,1770318642766,-155.22993896,0.00022296,7]
[404591843,1770318642776,-152.01739561,0.000223,2]
[404591844,1770318642786,-197.0,0.00022331,120]
[404591845,1770318642796,-2693.76418737,0.00022356,2]
[404591846,1770318642805,-1000.0,0.00022466,2]
[404591847,1770318642814,-359.76179104,0.00022521,2]
[404591848,1770318642824,-152.0,0.00022531,3]
[404591849,1770318642834,-450.0,0.00022616,2]
[404591850,1770318642843,-3348.52727413,0.00022628,2]
[404591851,1770318642853,-650.0,0.00022712,2]
[404591852,1770318642863,-1000.0,0.0002274,2]
[404591853,1770318642873,-1446.62636525,0.00022767,30]
[404591854,1770318642883,-2000.0,0.00022798,2]
[404591855,1770318642892,-233.51889341,0.00022798,2]
[404591856,1770318642901,-299.79485617,0.00022814,2]
[404591857,1770318642914,-3753.4740405,0.00022814,2]
[404591858,1770318642924,-1446.62636525,0.00022849,30]
[404591859,1770318642935,-181.7,0.00022921,2]
[404591860,1770318642951,-1082.67885729,0.00022932,30]
[404591861,1770318642963,-363.94750796,0.00022932,30]
[404591862,1770318642974,-206.0,0.00023,7]
[404591863,1770318642984,-160.0,0.00023,2]
[404591864,1770318642994,-1000.0,0.00023014,2]
[404591865,1770318643004,-1446.62636525,0.00023041,30]
[404591866,1770318643015,-155.22993896,0.00023045,7]
[404591867,1770318643027,-314.95448783,0.00023123,30]
[404591868,1770318643039,-1131.67187742,0.00023123,30]
[404591869,1770318643048,-550.0,0.00023164,2]
[404591870,1770318643058,-58.41922588,0.00023205,30]
[404591871,1770318643070,-1143.00500063,0.00023205,30]
[404591872,1770318643082,-245.20213874,0.00023205,30]
[404591873,1770318643091,-86.93286126,0.0002326,2]
[404591874,1770318643103,-369.75633859,0.0002326,2]
[404591875,1770318643114,-293.31080015,0.0002326,2]
[404591876,1770318643123,-206.0,0.00023288,7]
[404591877,1770318643136,-1000.0,0.00023288,2]
[404591878,1770318643146,-1446.62636525,0.00023315,30]
[404591879,1770318643155,-2000.0,0.00023346,2]
[404591880,1770318643166,-242.15909246,0.00023346,2]
[404591881,1770318643175,-1446.62636525,0.00023397,30]
[404591882,1770318643186,-1446.62636525,0.00023479,30]
[404591884,1770318643196,-1000.0,0.00023562,2]
[404591885,1770318643206,-1446.62636525,0.00023589,30]
[404591886,1770318643215,-2258.0,0.0002367,2]
[404591887,1770318643226,-1446.62636525,0.00023671,30]
[404591888,1770318643235,-650.0,0.00023712,2]
[404591890,1770318643245,-1446.62636525,0.00023753,30]
[404591892,1770318643254,-155.22993896,0.00023793,7]
[404591894,1770318643264,-546.8355192,0.00023808,2]
[404591896,1770318643274,-1000.0,0.00023836,2]
[404591898,1770318643283,-373.07297731,0.0002389,2]
[404591900,1770318643293,-621.78829552,0.00023892,2]
[404591902,1770318643302,-2000.0,0.00023894,2]
[404591904,1770318643312,-251.11897888,0.00023894,2]
[404591906,1770318643322,-160.0,0.00024,30]
[404591908,1770318643331,-1000.0,0.0002411,2]
[404591910,1770318643340,-206.0,0.00024164,7]
[404591912,1770318643350,-6248.25,0.00024174,2]
[404591914,1770318643360,-2000.0,0.000242,2]
[404591916,1770318643371,-1000.0,0.00024244,2]
[404591917,1770318643381,-750.0,0.0002426,2]
[404591920,1770318643391,-4053.26889667,0.00024278,2]
[404591922,1770318643401,-152.01739562,0.00024327,2]
[404591924,1770318643411,-1999.0,0.00024384,2]
[404591926,1770318643421,-2000.0,0.00024442,2]
[404591928,1770318643430,-260.4103811,0.00024442,2]
[404591930,1770318643440,-155.22993896,0.00024542,7]
[404591931,1770318643449,-500.0,0.00024573,2]